fUSD/lending_fUSD_20250504
["ID","MTS","AMOUNT","RATE_DAILY","PERIOD"]
[359838337,1746364368342,10000.0,0.00018,2]
[359838338,1746364368362,10000.0,0.00018,2]
[359838339,1746364368382,3967.06049621,0.00018,2]
[359838340,1746364379828,154.43,0.00018877,2]
[359838341,1746364443144,2000.000002,0.00019,2]
[359838342,1746364506015,3858.43,0.00019,2]
[359838343,1746364507704,20.07950179,0.00019,2]
[359838344,1746364507724,3838.35049821,0.00019,2]
[359838345,1746364509442,3858.43,0.00019,2]
[359838346,1746364602707,161.32,0.00018823,2]
[359838348,1746364643017,160.0,0.0003,32]
[359838349,1746364681564,174.38,0.00015052,2]
[359838350,1746364690309,165.44,0.00019379,2]
[359838351,1746364707911,164.055881,0.0003,33]
[359838352,1746364708523,164.055881,0.0003,31]
[359838353,1746364708837,164.055881,0.0003,32]
[359838354,1746364815383,1802.07950179,0.00018837,2]
[359838355,1746364815404,10000.0,0.00018837,2]
[359838356,1746364815425,10000.0,0.00018837,2]
[359838357,1746364815446,2097.92049821,0.00018837,2]
[359838358,1746364819315,1000.0,0.00018843,2]
[359838359,1746364850407,651.56,0.0001882,2]
[359838360,1746364939528,160.0,0.0003,32]
[359838361,1746364946938,250.0,0.0001877,2]
[359838362,1746364990732,4411.45,0.00018912,2]
[359838363,1746365001757,151.671839,0.0003,33]
[359838364,1746365002062,151.671839,0.0003,33]
[359838365,1746365002949,151.671839,0.0003,31]
[359838366,1746365003411,151.671839,0.0003,31]
[359838367,1746365004308,151.671839,0.0003,32]
[359838369,1746365047882,502.48,0.0003,30]
[359838370,1746365048105,166.740216,0.0003,33]
[359838371,1746365048705,166.740216,0.0003,31]
[359838372,1746365050061,166.740216,0.0003,32]
[359838373,1746365106168,1589.06950179,0.00019,2]
[359838374,1746365106191,9928.34049821,0.00019,2]
[359838375,1746365107847,366.7662626,0.00019,2]
[359838376,1746365107868,71.65950179,0.00019,2]
[359838377,1746365107889,10000.0,0.00019,2]
[359838378,1746365107911,1078.98423561,0.00019,2]
[359838379,1746365109475,8921.01576439,0.00019,2]
[359838380,1746365109497,2596.39423561,0.00019,2]
[359838381,1746365128078,2000.0,0.00011,2]
[359838384,1746365190910,1457.89952249,0.00015,2]
[359838396,1746365231374,3945.7062419,0.00015,2]
[359838397,1746365231394,64.23608079,0.00015,2]
[359838400,1746365234733,9935.76391921,0.00015,2]
[359838401,1746365234757,3982.01721085,0.00015,2]
[359838402,1746365239784,160.0,0.0003,32]
[359838409,1746365274932,6017.98278915,0.0001,2]
[359838410,1746365274956,10000.0,0.0001,2]
[359838411,1746365274977,143.64890766,0.0001,2]
[359838412,1746365276954,1718.05731735,0.000181,2]
[359838413,1746365292879,2000.0,0.0001439,2]
[359838414,1746365294354,200.0,0.0001634,2]
[359838415,1746365295857,194.65874869,0.000135,2]
[359838416,1746365311849,237.87,0.00018736,2]
[359838417,1746365313247,3574.83959443,0.000149,2]
[359838419,1746365322338,1930.92543187,0.00013368,2]
[359838420,1746365322360,8931.17031651,0.00013368,2]
[359838430,1746365406571,1068.82968349,0.00019,2]
[359838431,1746365406592,10000.0,0.00019,2]
[359838432,1746365406613,9914.61031651,0.00019,2]
[359838433,1746365408289,85.38968349,0.00019,2]
[359838434,1746365408316,10000.0,0.00019,2]
[359838435,1746365408338,10000.0,0.00019,2]
[359838436,1746365408359,898.05031651,0.00019,2]
[359838451,1746365431856,-250.0,0.00019525,2]
[359838452,1746365431877,-477.22778263,0.00019525,2]
[359838453,1746365431887,-727.22778262,0.00019525,2]
[359838454,1746365431897,-3145.66993253,0.00019553,2]
[359838455,1746365431907,-200.0,0.0001957,2]
[359838456,1746365431916,-1200.0,0.00019591,2]
[359838457,1746365431926,-300.0,0.00019591,2]
[359838458,1746365431937,-3145.66993252,0.00019592,2]
[359838459,1746365431947,-207.4,0.00019614,2]
[359838460,1746365431957,-300.0,0.00019615,2]
[359838461,1746365431967,-12302.38593855,0.00019616,2]
[359838462,1746365431976,-200.0,0.00019625,2]
[359838463,1746365431986,-500.0,0.00019625,2]
[359838464,1746365431997,-500.0,0.00019625,2]
[359838465,1746365432006,-500.0,0.00019625,2]
[359838466,1746365432016,-500.0,0.00019625,2]
[359838467,1746365432026,-500.0,0.00019625,2]
[359838468,1746365432035,-500.0,0.00019625,2]
[359838469,1746365432045,-500.0,0.00019625,2]
[359838470,1746365432054,-500.0,0.00019625,2]
[359838471,1746365432064,-445.5931204,0.00019625,2]
[359838472,1746365432073,-500.0,0.00019625,2]
[359838473,1746365432083,-500.0,0.00019625,2]
[359838474,1746365432097,-500.0,0.00019625,2]
[359838475,1746365432107,-500.0,0.00019625,2]
[359838476,1746365432117,-500.0,0.00019625,2]
[359838477,1746365432127,-500.0,0.00019625,2]
[359838478,1746365432136,-500.0,0.00019625,2]
[359838479,1746365432146,-500.0,0.00019625,2]
[359838480,1746365432155,-500.0,0.00019625,2]
[359838481,1746365432165,-500.0,0.00019625,2]
[359838482,1746365432175,-500.0,0.00019625,2]
[359838483,1746365432185,-500.0,0.00019625,2]
[359838484,1746365432195,-500.0,0.00019625,2]
[359838485,1746365432204,-500.0,0.00019625,2]
[359838486,1746365432214,-500.0,0.00019625,2]
[359838487,1746365432223,-500.0,0.00019625,2]
[359838488,1746365432233,-500.0,0.00019625,2]
[359838490,1746365432243,-500.0,0.00019625,2]
[359838492,1746365432252,-500.0,0.00019625,2]
[359838494,1746365432262,-500.0,0.00019625,2]
[359838496,1746365432272,-500.0,0.00019625,2]
[359838498,1746365432282,-500.0,0.00019625,2]
[359838500,1746365432291,-500.0,0.00019625,2]
[359838502,1746365432301,-500.0,0.00019625,2]
[359838504,1746365432310,-500.0,0.00019625,2]
[359838506,1746365432319,-500.0,0.00019625,2]
[359838508,1746365432328,-500.0,0.00019625,2]
[359838510,1746365432338,-500.0,0.00019625,2]
[359838512,1746365432347,-500.0,0.00019625,2]
[359838514,1746365432356,-500.0,0.00019625,2]
[359838517,1746365432366,-359.21600065,0.00019625,2]
[359838520,1746365432376,-500.0,0.00019625,2]
[359838523,1746365432385,-500.0,0.00019625,2]
[359838526,1746365432394,-400.0,0.00019625,2]
[359838529,1746365432403,-500.0,0.00019625,2]
[359838532,1746365432412,-500.0,0.00019625,2]
[359838535,1746365432422,-500.0,0.00019625,2]
[359838538,1746365432431,-500.0,0.00019625,2]
[359838540,1746365432441,-500.0,0.00019625,2]
[359838541,1746365432450,-500.0,0.00019625,2]
[359838543,1746365432460,-500.0,0.00019625,2]
[359838545,1746365432469,-500.0,0.00019625,2]
[359838547,1746365432483,-200.0,0.00019625,2]
[359838549,1746365432492,-151.0,0.00019626,2]
[359838551,1746365432502,-6563.17460615,0.00019626,2]
[359838553,1746365432512,-1000.0,0.00019626,2]
[359838555,1746365432523,-82687.67806788,0.00019626,2]
[359838557,1746365432533,-194.9861525,0.00019626,2]
[359838559,1746365432543,-1000.0,0.00019626,2]
[359838561,1746365432555,-12199.3726,0.00019626,2]
[359838563,1746365432565,-2500.0,0.00019626,2]
[359838565,1746365432575,-500.0,0.00019626,2]
[359838567,1746365432586,-8059.50378248,0.00019626,2]
[359838571,1746365432607,-281.39414975,0.00019626,2]
[359838582,1746365432708,-449.93201453,0.00019626,2]
[359838584,1746365432720,-470.18349059,0.00019626,2]
[359838586,1746365432731,-2040.00004,0.00019626,2]
[359838614,1746365437122,163.54,0.00018751,2]
[359838620,1746365437833,-158.75377678,0.00019626,2]
[359838621,1746365437843,-2880.10222265,0.00019626,2]
[359838622,1746365437853,-3015.13548284,0.0001963,2]
[359838623,1746365437890,-130.53444968,0.0001963,2]
[359838624,1746365437899,-637.3993509,0.00019631,2]
[359838625,1746365437909,-225.0,0.00019653,2]
[359838626,1746365437918,-5000.0,0.00019653,2]
[359838627,1746365437927,-161.7485,0.00019653,2]
[359838628,1746365437937,-161.4672598,0.00019653,2]
[359838629,1746365437947,-6563.1746061,0.00019656,2]
[359838630,1746365437956,-666.0,0.00019663,2]
[359838631,1746365437966,-3145.66993252,0.00019669,2]
[359838632,1746365437975,-6563.1746061,0.00019687,2]
[359838633,1746365437985,-161.46725979,0.00019702,2]
[359838634,1746365437995,-262.71,0.00019706,2]
[359838635,1746365438005,-3145.66993252,0.00019707,2]
[359838636,1746365438015,-151.0,0.00019714,2]
[359838637,1746365438025,-262.71,0.00019716,2]
[359838638,1746365438035,-262.71,0.00019716,2]
[359838639,1746365438044,-262.71,0.00019716,2]
[359838640,1746365438054,-262.71,0.00019716,2]
[359838641,1746365438064,-262.71,0.00019716,2]
[359838642,1746365438074,-262.71,0.00019716,2]
[359838643,1746365438088,-262.71,0.00019716,2]
[359838644,1746365438098,-262.71,0.00019716,2]
[359838645,1746365438108,-262.71,0.00019716,2]
[359838646,1746365438118,-180.89,0.00019716,2]
[359838647,1746365438128,-6563.1746061,0.00019717,2]
[359838648,1746365438138,-490.0,0.00019726,2]
[359838649,1746365438148,-490.0,0.00019726,2]
[359838650,1746365438157,-502.84975095,0.00019726,2]
[359838651,1746365438168,-450.0,0.00019726,2]
[359838652,1746365438177,-490.0,0.00019726,2]
[359838654,1746365438187,-490.0,0.00019726,2]
[359838656,1746365438197,-490.0,0.00019726,2]
[359838658,1746365438207,-490.0,0.00019726,2]
[359838660,1746365438217,-490.0,0.00019726,2]
[359838662,1746365438226,-450.0,0.00019726,2]
[359838664,1746365438236,-490.0,0.00019726,2]
[359838666,1746365438246,-450.0,0.00019726,2]
[359838668,1746365438256,-490.0,0.00019726,2]
[359838670,1746365438266,-501.99825597,0.00019726,2]
[359838672,1746365438276,-450.0,0.00019726,2]
[359838674,1746365438285,-450.0,0.00019726,2]
[359838676,1746365438295,-304.26472933,0.00019726,2]
[359838678,1746365438306,-450.0,0.00019726,2]
[359838680,1746365438316,-170.61262534,0.00019726,2]
[359838682,1746365438325,-218.19,0.00019726,2]
[359838684,1746365438335,-450.0,0.00019726,2]
[359838686,1746365438344,-450.0,0.00019726,2]
[359838688,1746365438354,-450.0,0.00019726,2]
[359838691,1746365438363,-470.0,0.00019726,2]
[359838693,1746365438373,-1433.19,0.00019726,2]
[359838695,1746365438382,-450.0,0.00019726,2]
[359838697,1746365438392,-570.88714577,0.00019726,2]
[359838700,1746365438402,-450.0,0.00019726,2]
[359838702,1746365438412,-450.0,0.00019726,2]
[359838704,1746365438421,-450.0,0.00019726,2]
[359838706,1746365438431,-450.0,0.00019726,2]
[359838708,1746365438441,-450.0,0.00019726,2]
[359838710,1746365438451,-450.0,0.00019726,2]
[359838712,1746365438460,-450.0,0.00019726,2]
[359838714,1746365438470,-450.0,0.00019726,2]
[359838716,1746365438482,-450.0,0.00019726,2]
[359838718,1746365438492,-450.0,0.00019726,2]
[359838720,1746365438503,-450.0,0.00019726,2]
[359838722,1746365438513,-450.0,0.00019726,2]
[359838724,1746365438523,-450.0,0.00019726,2]
[359838726,1746365438532,-450.0,0.00019726,2]
[359838728,1746365438542,-505.06234444,0.00019726,2]
[359838730,1746365438553,-573.24,0.00019726,2]
[359838732,1746365438563,-450.0,0.00019726,2]
[359838734,1746365438573,-463.83536893,0.00019726,2]
[359838735,1746365438583,-450.0,0.00019726,2]
[359838736,1746365438593,-470.0,0.00019726,2]
[359838737,1746365438603,-470.0,0.00019726,2]
[359838738,1746365438616,-450.0,0.00019726,2]
[359838739,1746365438626,-450.0,0.00019726,2]
[359838740,1746365438636,-450.0,0.00019726,2]
[359838741,1746365438646,-470.0,0.00019726,2]
[359838742,1746365438656,-527.86,0.00019726,2]
[359838743,1746365438665,-450.0,0.00019726,2]
[359838744,1746365438675,-470.0,0.00019726,2]
[359838745,1746365438684,-450.0,0.00019726,2]
[359838746,1746365438693,-450.0,0.00019726,2]
[359838747,1746365438703,-450.0,0.00019726,2]
[359838748,1746365438712,-460.62772181,0.00019726,2]
[359838749,1746365438722,-450.0,0.00019726,2]
[359838750,1746365438732,-450.0,0.00019726,2]
[359838751,1746365438742,-450.0,0.00019726,2]
[359838752,1746365438752,-450.0,0.00019726,2]
[359838753,1746365438761,-330.0,0.00019726,2]
[359838754,1746365438771,-450.0,0.00019726,2]
[359838755,1746365438780,-481.13,0.00019726,2]
[359838756,1746365438789,-512.37,0.00019726,2]
[359838757,1746365438799,-573.44291963,0.00019726,2]
[359838758,1746365438809,-590.62,0.00019726,2]
[359838759,1746365438818,-450.0,0.00019726,2]
[359838760,1746365438827,-523.49238291,0.00019726,2]
[359838761,1746365438836,-450.0,0.00019726,2]
[359838762,1746365438846,-77.39958162,0.00019726,2]
[359838763,1746365438867,-429.30041838,0.00019726,2]
[359838764,1746365439130,-25.54215372,0.00019726,2]
[359838765,1746365439147,-387.15203507,0.00019726,2]
[359838766,1746365439162,-37.30581121,0.00019726,2]
[359838767,1746365439171,-477.07917334,0.00019726,2]
[359838768,1746365439181,-470.0,0.00019726,2]
[359838769,1746365439190,-450.0,0.00019726,2]
[359838770,1746365439200,-470.0,0.00019726,2]
[359838771,1746365439210,-450.0,0.00019726,2]
[359838772,1746365439219,-533.4,0.00019726,2]
[359838773,1746365439228,-450.0,0.00019726,2]
[359838774,1746365439237,-470.0,0.00019726,2]
[359838775,1746365439245,-527.03,0.00019726,2]
[359838776,1746365439253,-470.0,0.00019726,2]
[359838777,1746365439261,-514.74,0.00019726,2]
[359838778,1746365439269,-450.0,0.00019726,2]
[359838779,1746365439278,-470.0,0.00019726,2]
[359838780,1746365439286,-450.0,0.00019726,2]
[359838781,1746365439295,-470.0,0.00019726,2]
[359838782,1746365439304,-450.0,0.00019726,2]
[359838783,1746365439312,-450.0,0.00019726,2]
[359838784,1746365439321,-550.86,0.00019726,2]
[359838785,1746365439330,-450.0,0.00019726,2]
[359838786,1746365439339,-450.0,0.00019726,2]
[359838787,1746365439348,-450.0,0.00019726,2]
[359838788,1746365439357,-470.0,0.00019726,2]
[359838789,1746365439365,-450.0,0.00019726,2]
[359838790,1746365439375,-450.0,0.00019726,2]
[359838791,1746365439384,-450.0,0.00019726,2]
[359838792,1746365439394,-470.0,0.00019726,2]
[359838793,1746365439403,-450.0,0.00019726,2]
[359838794,1746365439413,-450.0,0.00019726,2]
[359838795,1746365439423,-450.0,0.00019726,2]
[359838796,1746365439432,-470.0,0.00019726,2]
[359838797,1746365439441,-538.4813996,0.00019726,2]
[359838798,1746365439450,-450.0,0.00019726,2]
[359838799,1746365439459,-450.0,0.00019726,2]
[359838800,1746365439468,-470.0,0.00019726,2]
[359838801,1746365439478,-470.0,0.00019726,2]
[359838802,1746365439490,-450.0,0.00019726,2]
[359838803,1746365439499,-450.0,0.00019726,2]
[359838804,1746365439508,-450.0,0.00019726,2]
[359838805,1746365439518,-450.0,0.00019726,2]
[359838806,1746365439527,-450.0,0.00019726,2]
[359838807,1746365439538,-470.0,0.00019726,2]
[359838808,1746365439547,-450.0,0.00019726,2]
[359838809,1746365439557,-470.0,0.00019726,2]
[359838810,1746365439567,-450.0,0.00019726,2]
[359838811,1746365439576,-450.0,0.00019726,2]
[359838812,1746365439585,-470.0,0.00019726,2]
[359838813,1746365439594,-470.0,0.00019726,2]
[359838814,1746365439602,-470.0,0.00019726,2]
[359838815,1746365439611,-450.0,0.00019726,2]
[359838816,1746365439620,-470.0,0.00019726,2]
[359838817,1746365439629,-450.0,0.00019726,2]
[359838818,1746365439638,-450.0,0.00019726,2]
[359838819,1746365439647,-450.0,0.00019726,2]
[359838820,1746365439656,-450.0,0.00019726,2]
[359838821,1746365439665,-450.0,0.00019726,2]
[359838823,1746365439675,-450.0,0.00019726,2]
[359838824,1746365439684,-450.0,0.00019726,2]
[359838825,1746365439693,-450.0,0.00019726,2]
[359838826,1746365439702,-470.0,0.00019726,2]
[359838827,1746365439711,-450.0,0.00019726,2]
[359838828,1746365439720,-450.0,0.00019726,2]
[359838829,1746365439729,-266.12441584,0.00019726,2]
[359838830,1746365440121,-158.75377677,0.00019717,2]
[359838831,1746365440130,-203.87558416,0.00019726,2]
[359838832,1746365440139,-547.51,0.00019726,2]
[359838833,1746365440148,-450.0,0.00019726,2]
[359838834,1746365440157,-470.0,0.00019726,2]
[359838835,1746365440166,-493.32,0.00019726,2]
[359838836,1746365440176,-566.05754888,0.00019726,2]
[359838837,1746365440185,-470.0,0.00019726,2]
[359838838,1746365440194,-470.0,0.00019726,2]
[359838839,1746365440204,-470.0,0.00019726,2]
[359838840,1746365440214,-470.0,0.00019726,2]
[359838841,1746365440223,-450.0,0.00019726,2]
[359838842,1746365440233,-450.0,0.00019726,2]
[359838843,1746365440243,-589.78572216,0.00019726,2]
[359838844,1746365440253,-470.0,0.00019726,2]
[359838845,1746365440263,-450.0,0.00019726,2]
[359838846,1746365440273,-490.0,0.00019726,2]
[359838847,1746365440282,-470.0,0.00019726,2]
[359838848,1746365440292,-470.0,0.00019726,2]
[359838849,1746365440304,-205.47,0.00019726,2]
[359838850,1746365440314,-450.0,0.00019726,2]
[359838851,1746365440324,-427.08,0.00019726,2]
[359838852,1746365440333,-490.0,0.00019726,2]
[359838853,1746365440342,-450.0,0.00019726,2]
[359838854,1746365440351,-490.0,0.00019726,2]
[359838855,1746365440361,-450.0,0.00019726,2]
[359838856,1746365440370,-246.26,0.00019726,2]
[359838857,1746365440379,-490.0,0.00019726,2]
[359838858,1746365440388,-490.0,0.00019726,2]
[359838859,1746365440398,-490.0,0.00019726,2]
[359838860,1746365440407,-450.0,0.00019726,2]
[359838861,1746365440416,-490.0,0.00019726,2]
[359838862,1746365440425,-450.0,0.00019726,2]
[359838863,1746365440441,-450.0,0.00019726,2]
[359838864,1746365440455,-490.0,0.00019726,2]
[359838865,1746365440465,-490.0,0.00019726,2]
[359838866,1746365440478,-450.0,0.00019726,2]
[359838867,1746365440491,-450.0,0.00019726,2]
[359838868,1746365440500,-450.0,0.00019726,2]
[359838869,1746365440510,-490.0,0.00019726,2]
[359838870,1746365440520,-490.0,0.00019726,2]
[359838871,1746365440531,-450.0,0.00019726,2]
[359838873,1746365440540,-490.0,0.00019726,2]
[359838875,1746365440550,-450.0,0.00019726,2]
[359838877,1746365440563,-490.0,0.00019726,2]
[359838878,1746365440573,-490.0,0.00019726,2]
[359838879,1746365440582,-450.0,0.00019726,2]
[359838880,1746365440592,-490.0,0.00019726,2]
[359838881,1746365440602,-490.0,0.00019726,2]
[359838882,1746365440612,-450.0,0.00019726,2]
[359838883,1746365440622,-490.0,0.00019726,2]
[359838884,1746365440631,-450.0,0.00019726,2]
[359838885,1746365440641,-320.72,0.00019726,2]
[359838886,1746365440651,-490.0,0.00019726,2]
[359838887,1746365440660,-450.0,0.00019726,2]
[359838888,1746365440670,-490.0,0.00019726,2]
[359838889,1746365440680,-450.0,0.00019726,2]
[359838890,1746365440690,-318.49,0.00019726,2]
[359838891,1746365440699,-490.0,0.00019726,2]
[359838892,1746365440709,-450.0,0.00019726,2]
[359838893,1746365440719,-490.0,0.00019726,2]
[359838894,1746365440729,-295.23715708,0.00019726,2]
[359838895,1746365440739,-490.0,0.00019726,2]
[359838896,1746365440748,-490.0,0.00019726,2]
[359838897,1746365440758,-295.44021095,0.00019726,2]
[359838898,1746365441169,-154.55978905,0.00019726,2]
[359838899,1746365441178,-101.53792391,0.00019726,2]
[359838900,1746365441190,-372.48627656,0.00019726,2]
[359838901,1746365441201,-15.97579953,0.00019726,2]
[359838902,1746365441211,-450.0,0.00019726,2]
[359838903,1746365441221,-450.0,0.00019726,2]
[359838904,1746365441230,-490.0,0.00019726,2]
[359838905,1746365441239,-490.0,0.00019726,2]
[359838906,1746365441249,-450.0,0.00019726,2]
[359838907,1746365441259,-450.0,0.00019726,2]
[359838908,1746365441268,-450.0,0.00019726,2]
[359838909,1746365441278,-490.0,0.00019726,2]
[359838910,1746365441287,-490.0,0.00019726,2]
[359838911,1746365441296,-450.0,0.00019726,2]
[359838912,1746365441305,-490.0,0.00019726,2]
[359838913,1746365441316,-450.0,0.00019726,2]
[359838914,1746365441325,-490.0,0.00019726,2]
[359838915,1746365441334,-450.0,0.00019726,2]
[359838916,1746365441343,-450.0,0.00019726,2]
[359838917,1746365441353,-490.0,0.00019726,2]
[359838918,1746365441362,-490.0,0.00019726,2]
[359838919,1746365441371,-450.0,0.00019726,2]
[359838920,1746365441380,-545.75481064,0.00019726,2]
[359838921,1746365441389,-450.0,0.00019726,2]
[359838922,1746365441398,-490.0,0.00019726,2]
[359838923,1746365441408,-490.0,0.00019726,2]
[359838924,1746365441417,-350.00014608,0.00019726,2]
[359838925,1746365441426,-450.0,0.00019726,2]
[359838926,1746365441435,-490.0,0.00019726,2]
[359838927,1746365441444,-490.0,0.00019726,2]
[359838928,1746365441454,-300.0,0.00019726,2]
[359838929,1746365441463,-450.0,0.00019726,2]
[359838930,1746365441472,-450.0,0.00019726,2]
[359838931,1746365441484,-576.57498431,0.00019726,2]
[359838932,1746365441494,-949.78,0.00019726,2]
[359838933,1746365441503,-490.0,0.00019726,2]
[359838934,1746365441512,-490.0,0.00019726,2]
[359838935,1746365441523,-450.0,0.00019726,2]
[359838936,1746365441532,-465.66,0.00019726,2]
[359838937,1746365441541,-450.0,0.00019726,2]
[359838938,1746365441551,-749.03,0.00019726,2]
[359838939,1746365441561,-490.0,0.00019726,2]
[359838940,1746365441570,-490.0,0.00019726,2]
[359838941,1746365441579,-490.0,0.00019726,2]
[359838942,1746365441588,-441.0,0.00019726,2]
[359838943,1746365441597,-450.0,0.00019726,2]
[359838944,1746365441606,-450.0,0.00019726,2]
[359838945,1746365441615,-490.0,0.00019726,2]
[359838946,1746365441625,-450.0,0.00019726,2]
[359838947,1746365441634,-490.0,0.00019726,2]
[359838948,1746365441644,-490.0,0.00019726,2]
[359838949,1746365441654,-450.0,0.00019726,2]
[359838950,1746365441663,-569.45005938,0.00019726,2]
[359838951,1746365441672,-450.0,0.00019726,2]
[359838952,1746365441681,-490.0,0.00019726,2]
[359838953,1746365441690,-450.0,0.00019726,2]
[359838954,1746365441699,-450.0,0.00019726,2]
[359838955,1746365441708,-913.21,0.00019726,2]
[359838956,1746365441718,-490.0,0.00019726,2]
[359838957,1746365441728,-450.0,0.00019726,2]
[359838958,1746365441737,-450.0,0.00019726,2]
[359838959,1746365441746,-450.0,0.00019726,2]
[359838960,1746365441755,-490.0,0.00019726,2]
[359838961,1746365441764,-450.0,0.00019726,2]
[359838962,1746365441773,-490.0,0.00019726,2]
[359838963,1746365441782,-450.0,0.00019726,2]
[359838964,1746365441791,-450.0,0.00019726,2]
[359838965,1746365441801,-490.0,0.00019726,2]
[359838966,1746365441811,-450.0,0.00019726,2]
[359838967,1746365441820,-11209.67,0.00019726,2]
[359838968,1746365441829,-490.0,0.00019726,2]
[359838969,1746365441839,-450.0,0.00019726,2]
[359838970,1746365441848,-490.0,0.00019726,2]
[359838971,1746365441857,-450.0,0.00019726,2]
[359838972,1746365441866,-490.0,0.00019726,2]
[359838973,1746365441875,-500.0,0.00019726,2]
[359838974,1746365441884,-450.0,0.00019726,2]
[359838975,1746365441893,-450.0,0.00019726,2]
[359838976,1746365441902,-490.0,0.00019726,2]
[359838977,1746365441912,-531.4,0.00019726,2]
[359838978,1746365441921,-450.0,0.00019726,2]
[359838979,1746365441932,-550.85,0.00019726,2]
[359838980,1746365441941,-324.09,0.00019726,2]
[359838981,1746365441951,-450.0,0.00019726,2]
[359838982,1746365441960,-490.0,0.00019726,2]
[359838983,1746365441969,-450.0,0.00019726,2]
[359838984,1746365441978,-1055.39,0.00019726,2]
[359838985,1746365441987,-450.0,0.00019726,2]
[359838986,1746365441997,-456.77347407,0.00019726,2]
[359838987,1746365442006,-450.0,0.00019726,2]
[359838988,1746365442015,-450.0,0.00019726,2]
[359838989,1746365442025,-450.0,0.00019726,2]
[359838990,1746365442035,-450.0,0.00019726,2]
[359838991,1746365442044,-3349.39,0.00019726,2]
[359838992,1746365442054,-450.0,0.00019726,2]
[359838993,1746365442066,-490.0,0.00019726,2]
[359838994,1746365442076,-450.0,0.00019726,2]
[359838995,1746365442085,-450.0,0.00019726,2]
[359838996,1746365442095,-490.0,0.00019726,2]
[359838997,1746365442105,-450.0,0.00019726,2]
[359838998,1746365442114,-450.0,0.00019726,2]
[359838999,1746365442123,-450.0,0.00019726,2]
[359839000,1746365442132,-450.0,0.00019726,2]
[359839001,1746365442142,-284.21,0.00019726,2]
[359839002,1746365442151,-450.0,0.00019726,2]
[359839003,1746365442160,-450.0,0.00019726,2]
[359839004,1746365442170,-450.0,0.00019726,2]
[359839005,1746365442179,-450.0,0.00019726,2]
[359839006,1746365442188,-490.0,0.00019726,2]
[359839007,1746365442197,-3010.93,0.00019726,2]
[359839008,1746365442206,-815.79,0.00019726,2]
[359839009,1746365442215,-450.0,0.00019726,2]
[359839010,1746365442224,-450.0,0.00019726,2]
[359839011,1746365442235,-450.0,0.00019726,2]
[359839012,1746365442244,-450.0,0.00019726,2]
[359839013,1746365442253,-450.0,0.00019726,2]
[359839014,1746365442262,-450.0,0.00019726,2]
[359839015,1746365442272,-450.0,0.00019726,2]
[359839016,1746365442281,-470.0,0.00019726,2]
[359839017,1746365442291,-550.10842125,0.00019726,2]
[359839018,1746365442300,-450.0,0.00019726,2]
[359839019,1746365442309,-450.0,0.00019726,2]